lending/lending_fUSD_20240130
["ID","MTS","AMOUNT","RATE_DAILY","PERIOD"]
[313006688,1706598315970,-2459.29098748,0.000229,2]
[313006689,1706598317317,-2400.07331252,0.000229,2]
[313006690,1706598317337,-152.54540813,0.000229,2]
[313006691,1706598317355,-306.45382376,0.000229,2]
[313006692,1706598317377,-1140.92745559,0.000229,2]
[313006693,1706598318378,-1457.740685,0.000229,2]
[313006694,1706598318398,-1349.89,0.00022901,2]
[313006695,1706598318417,-156.88109996,0.00022912,2]
[313006696,1706598318436,-1035.48821504,0.00022912,2]
[313006697,1706598319605,-1198.77694316,0.00022912,2]
[313006698,1706598319624,-359.02607792,0.00022912,2]
[313006699,1706598319642,-439.71428451,0.00022996,2]
[313006700,1706598319662,-1821.73769178,0.00022996,2]
[313006701,1706598319680,-180.74500263,0.00022996,2]
[313006702,1706598341131,-730.14,0.00022996,2]
[313006703,1706598341150,-1822.94732979,0.00022996,2]
[313006704,1706598392619,491.88467827,0.00020696,5]
[313006705,1706598427539,348.52463702,0.00021996,2]
[313006706,1706598431109,-1000.0,0.00022897,2]
[313006707,1706598431129,-730.76,0.00022899,2]
[313006708,1706598431150,-2269.24,0.00022899,2]
[313006709,1706598437093,-448.08813739,0.00022798,2]
[313006710,1706598437114,-1204.5451375,0.00022899,2]
[313006711,1706598446104,-448.08813738,0.00022799,2]
[313006712,1706598446128,-4329.24736324,0.00022899,2]
[313006713,1706598446150,-1622.78942973,0.00022899,2]
[313006714,1706598451285,-448.08813738,0.000228,2]
[313006715,1706598451305,-3551.91186262,0.00022898,2]
[313006716,1706598452629,-4000.0,0.00022898,2]
[313006717,1706598454020,-4000.0,0.00022898,2]
[313006718,1706598455377,-4000.0,0.00022898,2]
[313006719,1706598456542,-3493.67029497,0.00022898,2]
[313006720,1706598456561,-506.32970503,0.00022899,2]
[313006721,1706598458053,-2381.59470271,0.00022899,2]
[313006722,1706598458075,-581.17822658,0.000229,2]
[313006723,1706598458095,-152.54540813,0.000229,2]
[313006724,1706598458114,-712.15,0.00022909,2]
[313006725,1706598458136,-172.53166258,0.00022912,2]
[313006726,1706598459502,-1316.9784429,0.00022912,2]
[313006727,1706598459521,-239.35071862,0.00022912,2]
[313006728,1706598459540,-166.2819897,0.00022912,2]
[313006729,1706598459559,-717.77,0.0002296,2]
[313006730,1706598459578,-150.0,0.00022995,2]
[313006731,1706598459601,-150.0,0.00022995,2]
[313006732,1706598459621,-720.61,0.00022996,2]
[313006733,1706598459642,-539.00884878,0.00022996,2]
[313006734,1706598461674,-277.50000573,0.00022996,2]
[313006735,1706598461695,-2321.73269682,0.00022996,2]
[313006736,1706598461715,-1400.76729745,0.00022996,2]
[313006737,1706598552079,-354.37,0.0002277,2]
[313006752,1706598631743,-8.63,0.0002277,2]
[313006753,1706598631752,-522.27848226,0.00022895,2]
[313006754,1706598631761,-589.41644151,0.00022896,2]
[313006755,1706598631773,-250.0,0.00022896,2]
[313006756,1706598631799,-160.58355849,0.00022896,2]
[313006757,1706598631808,-245.16305904,0.000229,2]
[313006758,1706598631819,-174.44590611,0.000229,2]
[313006759,1706598631834,-150.19879389,0.000229,2]
[313006760,1706598631844,-508.53094824,0.000229,2]
[313006761,1706598631854,-13223.8576055,0.00022911,2]
[313006762,1706598631960,-1032.05682951,0.00022911,2]
[313006763,1706598631972,-4789.66772258,0.00022911,2]
[313006764,1706598631981,-159.56714574,0.00022912,2]
[313006765,1706598631991,-415.5930939,0.00022996,2]
[313006766,1706598632002,-556.72909579,0.00022996,5]
[313006767,1706598632011,-499.99,0.00022996,2]
[313006768,1706598632020,-1198.80415382,0.00022996,2]
[313006769,1706598632032,-455.65211288,0.00022996,2]
[313006770,1706598632042,-1000.0,0.00022997,2]
[313006771,1706598632051,-282.5786369,0.00022997,2]
[313006772,1706598632061,-514.75435641,0.00022998,2]
[313006773,1706598632070,-1105.68616855,0.00022998,2]
[313006777,1706598632102,152.16986487,0.00022,2]
[313006809,1706598638034,-430.98213346,0.00022998,2]
[313006810,1706598638045,-4219.01786654,0.00022998,2]
[313006813,1706598638174,-8.4,0.00022998,2]
[313006832,1706598640988,-408.13069866,0.00022998,2]
[313006833,1706598640999,-2143.62450616,0.00022998,2]
[313006834,1706598641011,-4281.30291557,0.00022998,2]
[313006835,1706598641023,-751.74187961,0.00022998,2]
[313006836,1706598641046,-7370.02543475,0.00022998,2]
[313006837,1706598641117,-17679.58210492,0.00022998,2]
[313006838,1706598641127,-250.0,0.00022999,2]
[313006839,1706598641137,-150.01,0.00022999,2]
[313006840,1706598641147,-3305.32624244,0.00022999,2]
[313006841,1706598641157,-100207.53635845,0.00023,2]
[313006842,1706598641205,-4548.38939202,0.00023,2]
[313006843,1706598641219,-4400.07710104,0.00023,2]
[313006844,1706598641241,-0.04718252,0.00023,2]
[313006864,1706598642948,-3525.11507072,0.00023,2]
[313006865,1706598642961,-3132.38651419,0.00023,2]
[313006871,1706598645879,-7123.56326179,0.00022999,2]
[313006872,1706598645889,-546.27006581,0.00022999,2]
[313006873,1706598645898,-103546.39622067,0.00023,2]
[313006874,1706598645918,-16233.34039755,0.00023,2]
[313006875,1706598645929,-1701.3480908,0.00023,2]
[313006876,1706598646483,-465.17133714,0.00023,2]
[313006877,1706598646541,-0.03566615,0.00023,2]
[313006878,1706598646568,-6958.97269376,0.00023,2]
[313006879,1706598646582,-27755.18104394,0.00023,2]
[313006880,1706598646606,-0.14316973,0.00023,2]
[313006881,1706598646642,-392.10399987,0.00023,2]
[313006882,1706598646665,-503.26841419,0.00023,2]
[313006883,1706598646676,-263.04335995,0.00023,2]
[313006884,1706598713560,457.78772204,0.00020466,2]
[313006885,1706598716554,3172.40086865,0.00026,7]
[313006886,1706598916199,572.26,0.00022321,2]
[313006887,1706598921914,171.41,0.0002242,2]
[313006888,1706598998169,500.0,0.0002221,2]
[313006889,1706599004783,250.0,0.0002221,2]
[313006890,1706599076481,150.0,0.00022211,2]
[313006891,1706599113860,210.0,0.00022296,2]
[313006892,1706599118851,1688.54227796,0.00022127,3]
[313006893,1706599118871,811.45772204,0.00022127,3]
[313006894,1706599124513,1431.33,0.00022084,2]
[313006895,1706599148284,283.2,0.00020105,2]
[313006896,1706599148507,283.2,0.00022369,2]
[313006897,1706599162007,250.0,0.00022,2]
[313006898,1706599221020,940.81227796,0.00022034,2]
[313006899,1706599221041,4000.0,0.00022034,2]
[313006900,1706599221060,988.67772204,0.00022034,2]
[313006901,1706599224468,2000.0,0.00022034,2]
[313006902,1706599246349,572.31,0.00021968,2]
[313006903,1706599261141,200.0,0.00021992,2]
[313006904,1706599281516,200.0,0.00021976,2]
[313006905,1706599286640,39.01227796,0.00022003,2]
[313006906,1706599286658,198.44772204,0.00022003,2]
[313006907,1706599307183,282.33,0.00021964,2]
[313006908,1706599334631,1832.35,0.00022111,2]
[313006909,1706599341430,171.41,0.00022208,2]
[313006910,1706599386090,542.19,0.00022082,2]
[313006911,1706599438876,273.97,0.00022083,2]
[313006912,1706599442067,250.0,0.00022151,2]
[313006913,1706599517784,-247.29345311,0.00022519,2]
[313006914,1706599518008,-202.00882485,0.0002252,2]
[313006915,1706599521686,166.01,0.00022124,2]
[313006916,1706599548458,-3634.24678218,0.00022518,2]
[313006917,1706599548480,-365.75321782,0.00022519,2]
[313006918,1706599550743,-634.24678218,0.00022519,2]
[313006919,1706599550762,-292.81919456,0.00022519,2]
[313006920,1706599550781,-282.08995367,0.00022519,2]
[313006921,1706599550800,-1057.29040511,0.0002252,2]
[313006922,1706599550818,-150.0,0.00022524,2]
[313006923,1706599550840,-170.8437,0.00022544,2]
[313006924,1706599550860,-250.97227908,0.00022727,2]
[313006925,1706599550880,-301.89135144,0.00022728,2]
[313006926,1706599550899,-859.84633396,0.00022729,2]
[313006927,1706599551625,-4000.0,0.00022729,2]
[313006928,1706599552279,-4000.0,0.00022729,2]
[313006929,1706599553281,-4000.0,0.00022729,2]
[313006930,1706599553672,-4000.0,0.00022729,2]
[313006931,1706599554411,-4000.0,0.00022729,2]
[313006932,1706599555120,-4000.0,0.00022729,2]
[313006933,1706599555786,-4000.0,0.00022729,2]
[313006934,1706599556602,-4000.0,0.00022729,2]
[313006935,1706599557128,-4000.0,0.00022729,2]
[313006936,1706599557814,-4000.0,0.00022729,2]
[313006937,1706599558373,-2245.84144794,0.00022729,2]
[313006938,1706599558392,-499.99,0.0002273,2]
[313006939,1706599558411,-171.41,0.00022787,2]
[313006940,1706599558430,-296.08247319,0.00022793,2]
[313006941,1706599558447,-244.00082597,0.00022793,2]
[313006942,1706599558467,-542.6752529,0.00022795,2]
[313006943,1706599559007,-49.15296882,0.00022795,2]
[313006944,1706599559029,-3758.52496967,0.00022796,2]
[313006945,1706599559050,-192.32206151,0.00022797,2]
[313006946,1706599559783,-4000.0,0.00022797,2]
[313006947,1706599560443,-4000.0,0.00022797,2]
[313006948,1706599561169,-4000.0,0.00022797,2]
[313006949,1706599561872,-4000.0,0.00022797,2]
[313006950,1706599562640,-1058.2538693,0.00022797,2]
[313006951,1706599562659,-170.84369998,0.00022798,2]
[313006952,1706599562679,-500.0,0.000228,2]
[313006953,1706599562698,-2270.90243072,0.000228,2]
[313006954,1706599638098,-355.72638215,0.00022799,2]
[313006955,1706599676227,2973.4833,0.0002242,2]
[313006956,1706599717406,254.88,0.00021428,2]
[313006957,1706599757104,-292.81919456,0.00022794,2]
[313006958,1706599757124,-43.83080544,0.00022795,2]
[313006959,1706599763092,-846.84105951,0.00022795,2]
[313006967,1706599831831,-1000.0,0.00022798,2]
[313006969,1706599831841,-336.33523498,0.00022799,2]
[313006970,1706599831850,-206.4208,0.000228,2]
[313006971,1706599831860,-933.8554,0.000228,2]
[313006972,1706599831869,-500.0,0.000228,2]
[313006973,1706599831878,-232.93710824,0.000228,2]
[313006974,1706599831893,-627.63536882,0.000228,2]
[313006975,1706599831903,-32165.6052,0.000228,2]
[313006976,1706599831912,-179.872861,0.00022815,2]
[313006977,1706599831921,-800.0,0.00022815,2]
[313006978,1706599831930,-200.0,0.00022816,2]
[313006979,1706599831939,-800.0,0.00022816,2]
[313006980,1706599831950,-800.0,0.00022816,2]
[313006981,1706599831960,-200.0,0.00022816,2]
[313006982,1706599831970,-1000.0,0.00022885,2]
[313006983,1706599831978,-1000.0,0.00022885,2]
[313006984,1706599831987,-1000.0,0.00022885,2]
[313006985,1706599831997,-172.515,0.00022885,2]
[313006986,1706599832006,-500.0,0.00022885,2]
[313006987,1706599832015,-500.0,0.00022885,2]
[313006988,1706599832025,-500.0,0.00022885,2]
[313006989,1706599832035,-500.0,0.00022885,2]
[313006990,1706599832045,-500.0,0.00022885,2]
[313006991,1706599832055,-500.0,0.00022885,2]
[313006992,1706599832064,-500.0,0.00022885,2]
[313006993,1706599832074,-500.0,0.00022885,2]
[313006994,1706599832083,-500.0,0.00022885,2]
[313006995,1706599832092,-500.0,0.00022885,2]
[313006996,1706599832101,-500.0,0.00022885,2]
[313006997,1706599832110,-1257.91411105,0.00022898,2]
[313006998,1706599832120,-282.67440882,0.00022898,2]
[313006999,1706599832129,-3640.7371751,0.00022899,2]
[313007000,1706599832139,-2132.36549641,0.00022899,2]
[313007001,1706599832149,-196.1304472,0.00022899,2]
[313007002,1706599832159,-1627.1878,0.000229,2]
[313007003,1706599832169,-208.3237,0.000229,2]
[313007004,1706599832178,-106346.14927194,0.000229,2]
[313007005,1706599832190,-27847.0306,0.000229,2]
[313007006,1706599832201,-110806.82012806,0.000229,2]
[313007007,1706599832211,-2039.39062094,0.000229,2]
[313007008,1706599832222,-37306.86747906,0.000229,2]
[313007009,1706599832232,-41530.18812802,0.000229,2]
[313007010,1706599832252,-399.90157605,0.000229,2]
[313007011,1706599832263,-804.42570392,0.000229,2]
[313007012,1706599832293,-421.28720783,0.00022885,2]
[313007013,1706599832338,-78.71279217,0.00022885,2]
[313007014,1706599832347,-429.76682896,0.000229,2]
[313007015,1706599832359,-3311.04755706,0.000229,2]
[313007016,1706599832371,-616.35924009,0.000229,2]
[313007017,1706599832383,-1539.74002858,0.000229,2]
[313007018,1706599832395,-1363.6628221,0.000229,2]
[313007019,1706599832408,-409.96149532,0.000229,2]
[313007029,1706599837971,-500.0,0.00022885,2]
[313007030,1706599837980,-500.0,0.00022885,2]
[313007031,1706599837989,-500.0,0.00022885,2]
[313007032,1706599837999,-500.0,0.00022885,2]
[313007033,1706599838008,-176.42707251,0.00022885,2]
[313007034,1706599838029,-323.57292749,0.00022885,2]
[313007035,1706599838040,-500.0,0.00022885,2]
[313007036,1706599838050,-325.95748764,0.00022885,2]
[313007037,1706599838062,-174.04251236,0.00022885,2]
[313007038,1706599838071,-500.0,0.00022885,2]
[313007039,1706599838081,-500.0,0.00022885,2]
[313007040,1706599838091,-500.0,0.00022885,2]
[313007041,1706599838100,-183.0688,0.00022885,2]
[313007042,1706599838109,-6621.89626863,0.000229,2]
[313007043,1706599838138,-280.22179706,0.000229,2]
[313007052,1706599840475,-328.43998632,0.000229,2]
[313007053,1706599840487,-1748.42311518,0.000229,2]
[313007054,1706599840498,-1707.19950581,0.000229,2]
[313007055,1706599841113,-397.52,0.000229,2]
[313007056,1706599841223,-312.91159562,0.000229,2]
[313007111,1706599842929,-229.0976,0.000228,2]
[313007112,1706599842939,-38198.33435128,0.000229,2]
[313007113,1706599842947,-2551.84593865,0.000229,2]
[313007114,1706599842957,-152.54540813,0.000229,2]
[313007115,1706599842966,-993.00673698,0.000229,2]
[313007116,1706599842975,-410.72695666,0.000229,2]
[313007117,1706599842984,-903.2114498,0.00022997,2]
[313007118,1706599842994,-171.70472139,0.00022998,2]
[313007119,1706599843003,-3871.57940695,0.00022998,2]
[313007120,1706599843012,-5190.32928626,0.00022998,2]
[313007121,1706599843032,-652.20937819,0.00022998,2]
[313007122,1706599843104,-1045.47081562,0.00022998,2]
[313007123,1706599843115,-614.29174979,0.00022998,2]
[313007124,1706599843162,-773.61453112,0.00022998,2]
[313007125,1706599843172,-1719.10503118,0.00022998,2]
[313007126,1706599843181,-235.11918748,0.00022998,2]
[313007127,1706599843190,-417.70234132,0.00022998,2]
[313007128,1706599843200,-2496.2489089,0.00022998,2]
[313007129,1706599843211,-411.7493109,0.00022998,2]
[313007130,1706599843223,-3006.84742979,0.00022998,2]
[313007131,1706599843234,-406.1815225,0.00022998,2]
[313007139,1706599845980,-1075.70840542,0.00022998,2]
[313007140,1706599845991,-7419.89252783,0.00022998,2]
[313007141,1706599846003,-9127.21486927,0.00022998,2]
[313007142,1706599846013,-221.95046017,0.00022998,2]
[313007143,1706599846023,-941.46518137,0.00022998,2]
[313007144,1706599846034,-164.3107796,0.00022998,2]
[313007145,1706599846045,-156.36812441,0.00022998,2]
[313007146,1706599846059,-290.21949743,0.00022998,2]
[313007147,1706599846069,-161.59199862,0.00022998,2]
[313007148,1706599846078,-156.1531114,0.00022998,2]
[313007149,1706599846088,-1467.02299146,0.00022998,2]
[313007150,1706599846097,-157.09524705,0.00022998,2]
[313007151,1706599846106,-167.34710851,0.00022998,2]
[313007152,1706599846116,-200.4441397,0.00022998,2]
[313007153,1706599846126,-529.74752157,0.00022998,2]
[313007154,1706599846135,-1723.28258345,0.00022998,2]
[313007155,1706599846145,-314.52691818,0.00022998,2]
[313007156,1706599846154,-1441.5666125,0.00022998,2]
[313007157,1706599846165,-279.88780465,0.00022998,2]
[313007158,1706599846174,-156.23188827,0.00022998,2]
[313007159,1706599846183,-545.59327966,0.00022998,2]
[313007160,1706599846192,-1080.74610418,0.00022998,2]
[313007161,1706599846202,-14142.14263265,0.00022998,2]
[313007162,1706599846214,-28450.94655559,0.00022998,2]
[313007163,1706599846225,-2167.77944775,0.00022998,2]
[313007164,1706599846236,-411.06267295,0.00022998,2]
[313007165,1706599846248,-1959.89150662,0.00022998,2]
[313007166,1706599846260,-3452.27584184,0.00022998,2]
[313007167,1706599846269,-6364.9129075,0.00022998,2]
[313007168,1706599846279,-499.99,0.00022998,2]
[313007169,1706599846288,-2149.0314497,0.00022998,2]
[313007170,1706599846298,-11575.90229578,0.00022998,2]
[313007171,1706599846326,-1372.24586992,0.00022998,2]
[313007173,1706599846336,-1276.6006573,0.00022998,2]
[313007174,1706599846345,-150.01,0.00022999,2]
[313007175,1706599846354,-3305.32624244,0.00022999,2]
[313007176,1706599846364,-8609.41627723,0.00023,2]
[313007177,1706599846745,-2719.75466467,0.00023,2]
[313007178,1706599846760,-515.59597033,0.00023,2]
[313007179,1706599846773,-6360.22742309,0.00023,2]
[313007180,1706599846784,-6629.26493165,0.00023,2]
[313007181,1706599846796,-19764.14474307,0.00023,2]
[313007182,1706599846807,-19812.67562574,0.00023,2]
[313007183,1706599846824,-597.72023247,0.00023,2]
[313007184,1706599846838,-2119.0980002,0.00023,2]
[313007185,1706599846850,-9679.61626047,0.00023,2]
[313007186,1706599846862,-550.25133661,0.00023,2]
[313007187,1706599846924,-1434.02773215,0.00023,2]
[313007188,1706599847664,-1157.6415826,0.00023,2]
[313007189,1706599847691,-592.0131699,0.00023,2]
[313007190,1706599847717,-900.15046863,0.00023,2]
[313007191,1706599847744,-276.90558802,0.00023,2]
[313007192,1706599847771,-11326.26027201,0.00023,2]
[313007193,1706599857780,370.88795789,0.00022999,10]
[313007194,1706599979058,358.91200013,0.00022999,10]
[313007195,1706600221632,276.69,0.00020321,2]
[313007196,1706600244415,235.27,0.0002217,2]
[313007197,1706600251490,279.99458956,0.00022169,2]
[313007198,1706600262534,200.0,0.00022469,2]
[313007199,1706600277848,158.23,0.00022365,2]
[313007200,1706600283416,433.76,0.00022145,2]
[313007201,1706600410778,250.0,0.00022221,2]
[313007202,1706600453405,237.43,0.00022469,2]
[313007203,1706600524589,250.0,0.00021777,2]
[313007204,1706600646289,262.85,0.0002045,2]
[313007205,1706600671558,196.05,0.00022368,2]
[313007206,1706600688122,286.15,0.00022292,2]
[313007207,1706600784083,154.0,0.000314,120]
[313007208,1706600825104,-1000.0,0.00022552,2]
[313007209,1706600825126,-235.70482788,0.00022553,2]
[313007210,1706600825146,-292.81919456,0.00022554,2]
[313007211,1706600825181,-161.81065966,0.00022698,2]
[313007212,1706600825202,-229.03178902,0.00022699,2]
[313007213,1706600825223,-984.70901598,0.000227,2]
[313007214,1706600830268,158.23,0.0002194,2]
[313007215,1706600853323,652.99,0.00021777,2]
[313007216,1706600853973,209.0,0.00022009,2]
[313007217,1706600854125,209.0,0.00026758,9]
[313007218,1706600973266,-154.4,0.000226,2]
[313007219,1706600991966,250.66306303,0.000225,2]
[313007220,1706600996543,250.0,0.000223,2]
[313007249,1706601032085,-7.41065965,0.000226,2]
[313007251,1706601032095,-250.0,0.00022667,2]
[313007253,1706601032106,-225.66367906,0.00022699,2]
[313007255,1706601032117,-292.58663292,0.00022699,2]
[313007257,1706601032127,-491.0970378,0.00022699,2]
[313007278,1706601032377,-236.8329622,0.00022699,2]
[313007279,1706601032387,-48.1670378,0.00022699,2]
[313007280,1706601032401,-685.8629622,0.00022699,2]
[313007281,1706601032411,-714.43,0.00022699,2]
[313007282,1706601032420,-720.88,0.000227,2]
[313007283,1706601032430,-732.89,0.000227,2]
[313007284,1706601032439,-29010.92498402,0.000227,2]
[313007285,1706601032449,-206.4208,0.000227,2]
[313007286,1706601032458,-197.0064,0.000227,2]
[313007287,1706601032467,-1000.0,0.000227,2]
[313007288,1706601032476,-6997.7722,0.000227,2]
[313007289,1706601032485,-496.33,0.00022714,2]
[313007290,1706601032494,-262.85,0.00022714,2]
[313007291,1706601032504,-282.76704083,0.00022768,2]
[313007292,1706601032513,-295.68851017,0.00022768,2]
[313007293,1706601032523,-263.05320849,0.00022768,2]
[313007294,1706601032532,-179.43,0.00022781,2]
[313007295,1706601032542,-170.91208643,0.00022798,2]
[313007296,1706601032550,-167.0973122,0.00022798,2]
[313007297,1706601032559,-233.46806501,0.00022798,2]
[313007298,1706601032569,-289.31995548,0.00022798,2]
[313007299,1706601032578,-279.62099025,0.00022798,2]
[313007300,1706601032586,-236.88969083,0.00022798,2]
[313007301,1706601032595,-297.16229779,0.00022799,2]
[313007302,1706601032604,-39346.2581,0.000228,2]
[313007303,1706601032613,-58709.47266502,0.000228,2]
[313007304,1706601032640,-1317.76550808,0.000228,2]
[313007305,1706601032651,-308.5094613,0.000228,2]
[313007306,1706601032664,-2170.45,0.000228,2]
[313007307,1706601032675,-909.03570238,0.000228,2]
[313007308,1706601038058,-608.0627175,0.000228,2]
[313007309,1706601038071,-363.25872601,0.000228,2]
[313007310,1706601038174,-1012.572,0.000228,2]
[313007311,1706601038185,-780.54963514,0.000228,2]
[313007312,1706601038229,-2971.93197188,0.000228,2]
[313007313,1706601038241,-30848.39161269,0.000228,2]
[313007314,1706601038251,-500.0,0.000228,2]
[313007315,1706601038261,-1000.0,0.000228,2]
[313007316,1706601038270,-89358.1663,0.000228,2]
[313007317,1706601038280,-499.99,0.000228,2]
[313007318,1706601038290,-156.90435776,0.000228,2]
[313007319,1706601038299,-1034.02524018,0.000228,2]
[313007320,1706601038309,-200.0,0.00022816,2]
[313007321,1706601038318,-200.0,0.00022816,2]
[313007322,1706601038328,-800.0,0.00022816,2]
[313007323,1706601038338,-96290.00775602,0.000229,2]
[313007324,1706601038350,-2125.0,0.000229,2]
[313007325,1706601038361,-797.84,0.000229,2]
[313007326,1706601038401,-261.6596807,0.000229,2]
[313007327,1706601038423,-4251.41490306,0.000229,2]
[313007328,1706601038458,-653.67901261,0.000229,2]
[313007329,1706601038470,-4361.11414386,0.000229,2]
[313007342,1706601040666,-613.46221154,0.000229,2]
[313007343,1706601041437,-104457.54392878,0.000229,2]
[313007344,1706601041531,-4126.8,0.000229,2]
[313007345,1706601041543,-350.55781886,0.000229,2]
[313007346,1706601041554,-2049.78330366,0.000229,2]
[313007347,1706601041566,-321.76073503,0.000229,2]
[313007348,1706601041578,-557.57111248,0.000229,2]
[313007349,1706601041589,-606.54717402,0.000229,2]
[313007350,1706601041605,-2789.2038977,0.000229,2]
[313007351,1706601041638,-306.09729367,0.000229,2]
[313007356,1706601043578,-999.44377386,0.000229,2]
[313007357,1706601043634,-1700.0,0.000229,2]
[313007358,1706601043646,-1830.39466394,0.000229,2]
[313007359,1706601043692,-15550.11859021,0.000229,2]
[313007360,1706601043701,-1000.0,0.000229,2]
[313007361,1706601043710,-686.0872,0.000229,2]
[313007362,1706601043719,-1813.62841437,0.000229,2]
[313007363,1706601043747,-525.56369605,0.000229,2]
[313007364,1706601043756,-152.54540813,0.000229,2]
[313007365,1706601043766,-662.00449132,0.000229,2]
[313007366,1706601043775,-161.81065965,0.00022914,2]
[313007367,1706601043783,-215.84825104,0.00022975,2]
[313007368,1706601043792,-11747.23928415,0.00022985,2]
[313007369,1706601043816,-8448.81924438,0.00022985,2]
[313007370,1706601043828,-1219.06036654,0.00022985,2]
[313007371,1706601043861,-27890.37835668,0.00022985,2]
[313007372,1706601043870,-246.98948582,0.00022998,2]
[313007373,1706601043880,-2462.9556164,0.00022998,2]
[313007374,1706601043889,-281.73072389,0.00022998,2]
[313007375,1706601043899,-233.43814461,0.00022998,2]
[313007376,1706601043908,-250.61429787,0.00022998,2]
[313007377,1706601043917,-3160.98074311,0.00022998,2]
[313007379,1706601043927,-304.96637026,0.00022998,2]
[313007381,1706601043936,-739.94186279,0.00022998,2]
[313007383,1706601043946,-243.59133415,0.00022998,2]
[313007385,1706601043955,-247.74466246,0.00022998,2]
[313007387,1706601043964,-273.105,0.00022998,2]
[313007389,1706601043972,-265.79545857,0.00022998,2]
[313007391,1706601043981,-285.80236375,0.00022998,2]
[313007393,1706601043990,-535.34248921,0.00022998,2]
[313007395,1706601043999,-16671.72450253,0.00022998,2]
[313007397,1706601044008,-245.22580071,0.00022998,2]
[313007399,1706601044017,-344.52133117,0.00022998,2]
[313007401,1706601044026,-261.26409114,0.00022998,2]
[313007403,1706601044040,-265.60593895,0.00022998,2]
[313007404,1706601044049,-3950.3791234,0.00022998,2]
[313007405,1706601044058,-11102.9481923,0.00022998,2]
[313007406,1706601044067,-1752.1054071,0.00022998,2]
[313007407,1706601044077,-3929.3598832,0.00022998,2]
[313007408,1706601044086,-68966.7175831,0.00022998,2]
[313007409,1706601044095,-649.10425614,0.00022998,2]
[313007410,1706601044104,-150.01,0.00022999,2]
[313007411,1706601044114,-3305.32624244,0.00022999,2]
[313007412,1706601044125,-405518.92537681,0.00023,2]
[313007413,1706601044138,-3695.54348136,0.00023,2]
[313007414,1706601044151,-417.41414045,0.00023,2]
[313007415,1706601044162,-1017.312,0.00023,2]
[313007416,1706601044177,-1012.97035628,0.00023,2]
[313007428,1706601046159,-578.40000001,0.00023,2]
[313007429,1706601046213,-1064.10511605,0.00023,2]
[313007430,1706601046225,-264.62810732,0.00023,2]
[313007431,1706601156351,288.17,0.00021248,2]
[313007432,1706601209627,58674.75123602,0.00021,2]
[313007436,1706601285163,156.39,0.00022445,2]
[313007439,1706601305066,477.6,0.00022027,2]
[313007441,1706601314865,638.3,0.00021991,2]
[313007444,1706601360756,156.49,0.00022003,2]
[313007450,1706601419429,250.0,0.00021981,2]
[313007453,1706601490226,250.0,0.00021927,2]
[313007454,1706601539416,2500.0,0.00021955,3]
[313007455,1706601563196,576.74,0.00021982,2]
[313007456,1706601578600,273.76,0.00020069,2]
[313007457,1706601578799,273.76,0.00022333,2]
[313007458,1706601613904,-150.0,0.00041927,2]
[313007459,1706601640529,286.15,0.00022082,2]
[313007460,1706601707419,156.39,0.00022312,2]
[313007461,1706601734670,617.92,0.00022049,2]
[313007462,1706601735533,179.43,0.00022049,2]
[313007463,1706601879275,250.0,0.00022003,2]
[313007465,1706601930528,250.0,0.00021971,2]
[313007466,1706602017084,-283.12475054,0.00022535,2]
[313007467,1706602046743,246.38,0.00020049,2]
[313007468,1706602046943,246.38,0.00022313,2]
[313007469,1706602047087,-234.85552514,0.00022535,2]
[313007470,1706602047108,-2353.48556877,0.00022536,2]
[313007471,1706602094371,274.7578,0.0002244,2]
[313007472,1706602116694,480.61,0.00021971,2]
[313007473,1706602145254,156.39,0.00022105,2]
[313007474,1706602145483,156.39,0.00022393,2]